{"text_format":"3","workbook":"xlsx","n_sheets":7,"sheets":["P&L","Balance Sheet","Cash Flow","Net Income & EPS Non-GAAP","Segment Results","Core Revenue by Segment (QTD)","Core Revenue by Segment (YTD)"],"not_rendered":{"defined_names":25},"read":"whole","date_system":"1900"}

{"sheet":"P&L","index":0,"n_rows":51,"n_cols":8,"rows_kept":51,"merged":[[0,0,0,7],[1,0,1,7],[2,0,2,7],[3,0,3,7],[4,0,4,7],[7,1,7,3],[7,5,7,7],[8,1,8,3],[8,5,8,7],[47,0,47,7],[50,0,50,7],[53,0,53,5]]}
["AGILENT TECHNOLOGIES, INC."]
["CONDENSED CONSOLIDATED STATEMENT OF OPERATIONS"]
["(In millions, except per share data)"]
["(Unaudited)"]
["PRELIMINARY"]
[]
[]
[null,"Three Months Ended",{"$nulls":3},"Nine Months Ended"]
[null,"July 31,",{"$nulls":3},"July 31,"]
[null,2025,null,2024,null,2025,null,2024]
[]
["Net revenue",{"v":1738,"d":"$1,738"},null,{"v":1578,"d":"$1,578"},null,{"v":5087,"d":"$5,087"},null,{"v":4809,"d":"$4,809"}]
[]
["Costs and expenses:"]
["Cost of products and services",850,null,723,null,{"v":2434,"d":"2,434"},null,{"v":2190,"d":"2,190"}]
["Research and development",111,null,127,null,336,null,368]
["Selling, general and administrative",417,null,395,null,{"v":1281,"d":"1,281"},null,{"v":1171,"d":"1,171"}]
["Total costs and expenses",{"$f":"SUM(B15:B17)","v":{"v":1378,"d":"1,378"}},null,{"$f":"SUM(D15:D17)","v":{"v":1245,"d":"1,245"}},null,{"$f":"SUM(F15:F17)","v":{"v":4051,"d":"4,051"}},null,{"$f":"SUM(H15:H17)","v":{"v":3729,"d":"3,729"}}]
[]
["Income from operations",{"$f":"B12-B18","v":360},null,{"$f":"D12-D18","v":333},null,{"$f":"F12-F18","v":{"v":1036,"d":"1,036"}},null,{"$f":"H12-H18","v":{"v":1080,"d":"1,080"}}]
[]
["Interest income",16,null,19,null,45,null,56]
["Interest expense",{"v":-28,"d":"(28)"},null,{"v":-22,"d":"(22)"},null,{"v":-85,"d":"(85)"},null,{"v":-64,"d":"(64)"}]
["Other income (expense), net",18,null,13,null,{"v":-3,"d":"(3)"},null,48]
[]
["Income before taxes",{"$f":"SUM(B20:B24)","v":366},null,{"$f":"SUM(D20:D24)","v":343},null,{"$f":"SUM(F20:F24)","v":993},null,{"$f":"SUM(H20:H24)","v":{"v":1120,"d":"1,120"}}]
[]
["Provision for  income taxes",30,null,61,null,124,null,182]
[]
["Net income ",{"$f":"B26-B28","v":{"v":336,"d":"$336"}},null,{"$f":"D26-D28","v":{"v":282,"d":"$282"}},null,{"$f":"F26-F28","v":{"v":869,"d":"$869"}},null,{"$f":"H26-H28","v":{"v":938,"d":"$938"}}]
[]
[]
[]
["Net income per share:"]
["                             Basic",{"$f":"B30/B39","v":{"v":1.1830985915492958,"d":"$1.18"}},null,{"$f":"D30/D39","v":{"v":0.9724137931034482,"d":"$0.97"}},null,{"$f":"F30/F39","v":{"v":3.049122807017544,"d":"$3.05"}},null,{"$f":"H30/H39","v":{"v":3.212328767123288,"d":"$3.21"}}]
["                             Diluted",{"$f":"B30/B40","v":{"v":1.1789473684210525,"d":"$1.18"}},null,{"$f":"D30/D40","v":{"v":0.9690721649484536,"d":"$0.97"}},null,{"$f":"F30/F40","v":{"v":3.049122807017544,"d":"$3.05"}},null,{"$f":"H30/H40","v":{"v":3.2013651877133107,"d":"$3.20"}}]
[]
["Weighted average shares used in computing net income per share:     "]
["                             Basic",284,null,290,null,285,null,292]
["                             Diluted",285,null,291,null,285,null,293]
{"$rows_empty":7}
["The preliminary income statement is estimated based on our current information."]
[]
[]
["Page 1"]

{"sheet":"Balance Sheet","index":1,"n_rows":58,"n_cols":7,"rows_kept":58,"merged":[[0,0,0,6],[1,0,1,6],[2,0,2,6],[3,0,3,6],[4,0,4,6],[57,0,57,6]]}
["AGILENT TECHNOLOGIES, INC."]
["CONDENSED CONSOLIDATED BALANCE SHEET"]
["(In millions, except par value and share data)"]
["(Unaudited)"]
["PRELIMINARY"]
[]
[]
[{"$nulls":4},"July 31,",null,"October 31,"]
[{"$nulls":4},2025,null,2024]
["ASSETS"]
[]
["Current assets:"]
[null,"Cash and cash equivalents",null,null,{"v":1535,"d":"$1,535"},null,{"v":1329,"d":"$1,329"}]
[null,"Short-term investments"]
[null,"Accounts receivable, net",null,null,{"v":1382,"d":"1,382"},null,{"v":1324,"d":"1,324"}]
[null,"Inventory",null,null,{"v":1014,"d":"1,014"},null,972]
[null,"Other current assets",null,null,322,null,334]
[null,null,"Total current assets",null,{"$f":"SUM(E13:E17)","v":{"v":4253,"d":"4,253"}},null,{"$f":"SUM(G13:G17)","v":{"v":3959,"d":"3,959"}}]
[]
["Property, plant and equipment, net",{"$nulls":3},{"v":1966,"d":"1,966"},null,{"v":1778,"d":"1,778"}]
["Goodwill",{"$nulls":3},{"v":4475,"d":"4,475"},null,{"v":4477,"d":"4,477"}]
["Other intangible assets, net",{"$nulls":3},469,null,547]
["Long-term investments",{"$nulls":3},133,null,175]
["Other assets",{"$nulls":3},930,null,910]
[null,null,"Total assets",null,{"$f":"SUM(E18:E24)","v":{"v":12226,"d":"$12,226"}},null,{"$f":"SUM(G18:G24)","v":{"v":11846,"d":"$11,846"}}]
[]
["LIABILITIES AND EQUITY"]
[]
["Current liabilities:"]
[null,"Accounts payable",null,null,{"v":530,"d":"$530"},null,{"v":540,"d":"$540"}]
[null,"Employee compensation and benefits",null,null,346,null,368]
[null,"Deferred revenue",null,null,620,null,544]
[null,"Short-term debt",null,null,59,null,45]
[null,"Other accrued liabilities",null,null,337,null,398]
[null,null,"Total current liabilities",null,{"$f":"SUM(E30:E34)","v":{"v":1892,"d":"1,892"}},null,{"$f":"SUM(G30:G34)","v":{"v":1895,"d":"1,895"}}]
[]
["Long-term debt",{"$nulls":3},{"v":3350,"d":"3,350"},null,{"v":3345,"d":"3,345"}]
["Retirement and post-retirement benefits",{"$nulls":3},119,null,130]
["Other long-term liabilities",{"$nulls":3},495,null,578]
[null,null,"Total liabilities",null,{"$f":"SUM(E35:E39)","v":{"v":5856,"d":"5,856"}},null,{"$f":"SUM(G35:G39)","v":{"v":5948,"d":"5,948"}}]
[]
["Total Equity:"]
[null,"Stockholders' equity:"]
[null,"Preferred stock; $0.01 par value; 125,000,000 shares authorized; none issued and outstanding",null,null,"—  ",null,"—  "]
[null,"Common stock; $0.01 par value, 2,000,000,000 shares authorized; 283,593,838 shares"]
[null,null,"at July 31, 2025 and 285,193,011 shares at October 31, 2024, issued and outstanding",null,3,null,3]
[null,"Additional paid-in-capital",null,null,{"v":5548,"d":"5,548"},null,{"v":5450,"d":"5,450"}]
[null,"Retained earnings",null,null,{"v":1102,"d":"1,102"},null,750]
[null,"Accumulated other comprehensive loss",null,null,{"v":-283,"d":"(283)"},null,{"v":-305,"d":"(305)"}]
[null,null,"Total stockholders' equity",null,{"$f":"SUM(E45:E49)","v":{"v":6370,"d":"6,370"}},null,{"$f":"SUM(G45:G49)","v":{"v":5898,"d":"5,898"}}]
[{"$nulls":3},"Total liabilities and stockholders' equity",{"$f":"E40+E50","v":{"v":12226,"d":"$12,226"}},null,{"$f":"G40+G50","v":{"v":11846,"d":"$11,846"}}]
[]
[]
["The preliminary balance sheet is estimated based on our current information."]
[]
[]
[]
["Page 2"]

{"sheet":"Cash Flow","index":2,"n_rows":76,"n_cols":8,"rows_kept":76,"merged":[[0,0,0,7],[1,0,1,7],[2,0,2,7],[3,0,3,7],[4,0,4,7],[7,5,7,7],[75,0,75,7]]}
["AGILENT TECHNOLOGIES, INC."]
["CONDENSED CONSOLIDATED STATEMENT OF CASH FLOWS"]
["(In millions)"]
["(Unaudited)"]
["PRELIMINARY"]
[]
[]
[{"$nulls":5},"Nine Months Ended"]
[{"$nulls":5},"July 31,",null,{"$f":"F9","v":"July 31,"}]
[{"$nulls":5},2025,null,2024]
["Cash flows from operating activities:"]
[null,"Net income",{"$nulls":3},{"v":869,"d":"$869"},null,{"v":938,"d":"$938"}]
[]
["Adjustments to reconcile net income to net cash provided by operating activities:"]
[null,"Depreciation and amortization",{"$nulls":3},217,null,188]
[null,"Share-based compensation",{"$nulls":3},102,null,103]
[null,"Deferred taxes expense (benefit)",{"$nulls":3},{"v":-35,"d":"(35)"},null,{"v":-8,"d":"(8)"}]
[null,"Excess and obsolete inventory related charges",{"$nulls":3},30,null,33]
[null,"Net (gain) loss on equity securities",{"$nulls":3},28,null,{"v":-6,"d":"(6)"}]
[null,"Asset impairment charges",{"$nulls":3},15,null,8]
[null,"Other non-cash (income) expense, net",{"$nulls":3},4,null,2]
[null,"Changes in assets and liabilities:"]
[null,null,"Accounts receivable, net",null,null,{"v":-44,"d":"(44)"},null,67]
[null,null,"Inventory",null,null,{"v":-72,"d":"(72)"},null,15]
[null,null,"Accounts payable",null,null,{"v":-13,"d":"(13)"},null,78]
[null,null,"Employee compensation and benefits",null,null,{"v":-26,"d":"(26)"},null,{"v":-65,"d":"(65)"}]
[null,null,"Other assets and liabilities ",null,null,{"v":-61,"d":"(61)"},null,{"v":-83,"d":"(83)"}]
["Net cash provided by operating activities (a)",{"$nulls":4},{"$f":"SUM(F12:F27)","v":{"v":1014,"d":"1,014"}},null,{"$f":"SUM(H12:H27)","v":{"v":1270,"d":"1,270"}}]
[]
["Cash flows from investing activities:"]
[null,"Payments to acquire property, plant and equipment",{"$nulls":3},{"v":-314,"d":"(314)"},null,{"v":-285,"d":"(285)"}]
[null,"Proceeds from sale of equity securities",{"$nulls":3},5,null,"—  "]
[null,"Payments to acquire equity securities",{"$nulls":3},"—  ",null,{"v":-5,"d":"(5)"}]
[null,"Proceeds from convertible note",{"$nulls":3},2,null,"—  "]
[null,"Payments in exchange for convertible note",{"$nulls":3},{"v":-1,"d":"(1)"},null,{"v":-11,"d":"(11)"}]
[null,"Payments to acquire businesses and intangible assets, net of cash acquired",{"$nulls":3},4,null,{"v":-3,"d":"(3)"}]
["Net cash used in investing activities",{"$nulls":4},{"$f":"SUM(F31:F36)","v":{"v":-304,"d":"(304)"}},null,{"$f":"SUM(H31:H36)","v":{"v":-304,"d":"(304)"}}]
[]
["Cash flows from financing activities:"]
[null,"Proceeds from issuance of common stock under employee stock plans",{"$nulls":3},60,null,76]
[null,"Payment of taxes related to net share settlement of equity awards ",{"$nulls":3},{"v":-28,"d":"(28)"},null,{"v":-27,"d":"(27)"}]
[null,"Payments for repurchase of common stock",{"$nulls":3},{"v":-340,"d":"(340)"},null,{"v":-815,"d":"(815)"}]
[null,"Payment of excise taxes related to repurchases of common stock",{"$nulls":3},{"v":-10,"d":"(10)"},null,"—  "]
[null,"Payments of dividends",{"$nulls":3},{"v":-212,"d":"(212)"},null,{"v":-206,"d":"(206)"}]
[null,"Proceeds from issuance of long-term debt",{"$nulls":3},4,null,"—  "]
[null,"Repayments of long-term debt",{"$nulls":3},{"v":-2,"d":"(2)"},null,{"v":-180,"d":"(180)"}]
[null,"Net proceeds from (repayment of) short-term debt",{"$nulls":3},13,null,375]
["Net cash used in financing activities",{"$nulls":4},{"$f":"SUM(F38:F47)","v":{"v":-515,"d":"(515)"}},null,{"$f":"SUM(H38:H47)","v":{"v":-777,"d":"(777)"}}]
[]
["Effect of exchange rate movements",{"$nulls":4},10,null,"—  "]
[]
["Net increase (decrease) in cash, cash equivalents and restricted cash",{"$nulls":4},{"$f":"F28+F37+F48+F50","v":205},null,{"$f":"H28+H37+H48","v":189}]
[]
["Cash, cash equivalents and restricted cash at beginning of period",{"$nulls":4},{"v":1332,"d":"1,332"},null,{"v":1593,"d":"1,593"}]
[]
["Cash, cash equivalents and restricted cash at end of period",{"$nulls":4},{"$f":"SUM(F52:F54)","v":{"v":1537,"d":"$1,537"}},null,{"$f":"SUM(H52:H54)","v":{"v":1782,"d":"$1,782"}}]
[]
[]
["Reconciliation of cash, cash equivalents and restricted cash to the condensed consolidated balance sheet:"]
[]
[null,"Cash and cash equivalents",{"$nulls":3},{"v":1535,"d":"$1,535"},null,{"v":1779,"d":"$1,779"}]
[null,"Restricted cash, included in other assets",{"$nulls":3},2,null,3]
[null,"Total cash, cash equivalents and restricted cash",{"$nulls":3},{"$f":"SUM(F61:F62)","v":{"v":1537,"d":"$1,537"}},null,{"$f":"SUM(H61:H62)","v":{"v":1782,"d":"$1,782"}}]
[]
[]
["(a) Cash payments included in operating activities:"]
[]
[null,"Income tax payments, net of refunds received",{"$nulls":3},{"v":304,"d":"$304"},null,{"v":284,"d":"$284"}]
[null,"Interest payments, net of capitalized interest",{"$nulls":3},{"v":55,"d":"$55"},null,{"v":50,"d":"$50"}]
[]
[]
[]
["The preliminary cash flow is estimated based on our current information."]
[]
[]
["Page 3"]

{"sheet":"Net Income & EPS Non-GAAP","index":3,"n_rows":48,"n_cols":15,"rows_kept":48,"merged":[[0,0,0,14],[1,0,1,14],[2,0,2,14],[3,0,3,14],[4,0,4,14],[6,4,6,8],[6,10,6,14],[7,4,7,8],[7,10,7,14],[8,4,8,5],[8,7,8,8],[8,10,8,11],[8,13,8,14],[10,13,10,14],[25,0,25,14],[26,0,26,14],[27,1,27,14],[28,1,28,14],[29,1,29,14],[30,1,30,14],[31,1,31,14],[32,1,32,14],[33,1,33,14],[34,1,34,14],[35,1,35,14],[35,15,35,26],[35,27,35,29],[36,1,36,14],[38,0,38,14],[40,0,40,14],[42,0,42,14],[45,0,45,14],[47,0,47,14]]}
["AGILENT TECHNOLOGIES, INC."]
["NON-GAAP NET INCOME AND DILUTED EPS RECONCILIATIONS"]
["(In millions, except per share data)"]
["(Unaudited)"]
["PRELIMINARY"]
[]
[{"$nulls":4},"Three Months Ended",{"$nulls":5},"Nine Months Ended"]
[{"$nulls":4},"July 31,",{"$nulls":5},"July 31,"]
[{"$nulls":4},2025,null,null,2024,null,null,2025,null,null,2024]
[{"$nulls":4},"Net Income","Diluted EPS",null,"Net Income","Diluted EPS",null,"Net Income","Diluted EPS",null,"Net Income","Diluted EPS"]
[]
["GAAP net income",{"$nulls":3},{"v":336,"d":"$336"},{"v":1.18,"d":"$1.18"},null,{"v":282,"d":"$282"},{"v":0.97,"d":"$0.97"},null,{"v":869,"d":"$869"},{"v":3.05,"d":"$3.05"},null,{"v":938,"d":"$938"},{"v":3.2,"d":"$3.20"}]
[null,"Non-GAAP adjustments:"]
[null,null,"Restructuring and other related costs",null,17,0.06,null,67,0.23,null,74,0.26,null,71,0.24]
[null,null,"Asset impairments",null,"—  ","—  ",null,"—  ","—  ",null,15,0.05,null,8,0.03]
[null,null,"Intangible amortization",null,26,0.09,null,25,0.09,null,81,0.28,null,77,0.26]
[null,null,"Transformational initiatives",null,18,0.06,null,1,"—  ",null,48,0.17,null,5,0.02]
[null,null,"Acquisition and integration costs",null,3,0.01,null,4,0.01,null,15,0.05,null,5,0.02]
[null,null,"Net (gain) loss on equity securities",null,1,"—  ",null,{"v":-1,"d":"(1)"},"—  ",null,28,{"v":0.1,"d":"0.10"},null,{"v":-2,"d":"(2)"},{"v":-0.01,"d":"(0.01)"}]
[null,null,"Pension settlement loss",null,"—  ","—  ",null,"—  ","—  ",null,14,0.05,null,"—  ","—  "]
[null,null,"Other",null,12,0.05,null,3,0.01,null,27,0.09,null,4,0.01]
[null,null,"Adjustment for taxes (a)",null,{"v":-23,"d":"(23)"},{"v":-0.08,"d":"(0.08)"},null,4,0.01,null,{"v":-31,"d":"(31)"},{"v":-0.1,"d":"(0.10)"},null,15,0.06]
["Non-GAAP net income",{"$nulls":3},{"$f":"SUM(E12:E22)","v":{"v":390,"d":"$390"}},{"$f":"SUM(F12:F22)","v":{"v":1.37,"d":"$1.37"}},null,{"$f":"SUM(H12:H22)","v":{"v":385,"d":"$385"}},{"$f":"SUM(I12:I22)","v":{"v":1.32,"d":"$1.32"}},null,{"$f":"SUM(K12:K22)","v":{"v":1140,"d":"$1,140"}},{"$f":"SUM(L12:L22)","v":{"v":3.9999999999999996,"d":"$4.00"}},null,{"$f":"SUM(N12:N22)","v":{"v":1121,"d":"$1,121"}},{"$f":"SUM(O12:O22)","v":{"v":3.8300000000000005,"d":"$3.83"}}]
[]
[]
["(a) The adjustment for taxes excludes tax expense (benefits) that management believes are not directly related to on-going operations and which are either isolated, temporary or cannot be expected to occur again with any regularity or predictability such as the realized gain/loss due to sale of a business, windfall benefits on stock compensation, and the impact of R&D capitalization under section 174 of the Tax Cuts and Jobs Act of 2017.  During the three months ended July 31, 2025, tax reserves were released, which resulted in a tax benefit for GAAP purposes. This tax benefit is excluded from our non-GAAP results since it is not related to on-going business operations. For the three and nine months ended July 31 2025, management used a non-GAAP effective tax rate of 12.00%.  For the three and nine months ended July 31, 2024, management used a non-GAAP effective tax rate of 13.00%.  "]
["We provide non-GAAP net income and non-GAAP net income per share amounts in order to provide meaningful supplemental information regarding our operational performance and our prospects for the future. These supplemental measures exclude, among other things, charges related to restructuring and other related costs, asset impairments, amortization of intangibles, transformational initiatives, acquisition and integration costs, net (gain) loss on equity securities and pension settlement loss."]
[null,"Restructuring and other related costs include incremental expenses incurred in the period associated with restructuring programs, usually aimed at changes in business and/or cost structure. Such costs may include one-time termination benefits including acceleration of stock-based compensation expense, facility-related costs and contract termination fees."]
[null,"Asset impairments include assets that have been written down to their fair value."]
[null,"Transformational initiatives include expenses associated with targeted cost reduction activities such as manufacturing transfers including costs to move manufacturing, site consolidations, legal entity and other business reorganizations, insourcing or outsourcing of activities. Such costs may include move and relocation costs, one-time termination benefits and other one-time reorganization costs. Included in this category are also expenses associated with the Ignite transformation and company programs to transform our product lifecycle management (PLM) system and human resources and financial systems.\n\n"]
[null,"Acquisition and integration costs include all incremental expenses incurred to effect a business combination. Such acquisition costs may include advisory, legal, tax, accounting, valuation, and other professional or consulting fees. Such integration costs may include expenses directly related to integration of business and facility operations, the transfer of assets and intellectual property, information technology systems and infrastructure and other employee-related costs. \n"]
[null,"Business exit and divestiture costs (gain) include costs and gain associated with business divestitures. "]
[null,"Net (gain) loss on equity securities relates to the realized and unrealized mark-to-market adjustments for our marketable and non-marketable equity securities."]
[null,"Pension settlement loss resulted from the transfer of the Netherlands defined benefit plan to an unaffiliated insurance company.\n"]
[null,"Change in fair value of contingent consideration represents changes in the fair value estimate of acquisition-related contingent consideration."]
[null,"Other includes certain legal costs and settlements, consulting costs, special compliance costs, acceleration of stock-based compensation expense, impact of the difference between current and inflated tariff rates between USA and China for the first two weeks of May 2025 and other miscellaneous adjustments."]
[null,"Tax benefit on intra-entity asset transfer relates to our operations in Singapore along with our application of the new accounting rules for income tax consequences of intra-entity transfer of assets as adopted on November 1, 2018."]
[]
["Our management uses non-GAAP measures to evaluate the performance of our core businesses, to estimate future core performance and to compensate employees. Since management finds this measure to be useful, we believe that our investors benefit from seeing our results “through the eyes” of management in addition to seeing our GAAP results. This information facilitates our management’s internal comparisons to our historical operating results as well as to the operating results of our competitors."]
[]
["Our management recognizes that items such as amortization of intangibles can have a material impact on our cash flows and/or our net income. Our GAAP financial statements including our statement of cash flows portray those effects. Although we believe it is useful for investors to see core performance free of special items, investors should understand that the excluded items are actual expenses that may impact the cash available to us for other uses. To gain a complete picture of all effects on the company’s profit and loss from any and all events, management does (and investors should) rely upon the GAAP income statement. The non-GAAP numbers focus instead upon the core business of the company, which is only a subset, albeit a critical one, of the company’s performance."]
[]
["Readers are reminded that non-GAAP numbers are merely a supplement to, and not a replacement for, GAAP financial measures. They should be read in conjunction with the GAAP financial measures. It should be noted as well that our non-GAAP information may be different from the non-GAAP information provided by other companies."]
[]
["The preliminary non-GAAP net income and diluted EPS reconciliation is estimated based on our current information."]
[]
[]
["Page 4"]

{"sheet":"Segment Results","index":4,"n_rows":68,"n_cols":5,"rows_kept":68,"merged":[[0,0,0,4],[0,5,0,7],[1,0,1,4],[2,0,2,4],[3,0,3,4],[4,0,4,4],[7,0,7,4],[33,0,33,4],[60,0,60,4],[62,0,62,4],[67,0,67,4]]}
["AGILENT TECHNOLOGIES, INC."]
["SEGMENT INFORMATION"]
["(In millions, except where noted)"]
["(Unaudited)"]
["PRELIMINARY"]
[]
[]
["Quarter-over-Quarter"]
[]
["Life Sciences and Diagnostics Markets Segment"]
[null,null,"Q3'25",null,"Q3'24"]
["Revenue",null,{"v":670,"d":"$670"},null,{"v":585,"d":"$585"}]
["Gross Margin, %",null,{"v":0.505,"d":"50.5%"},null,{"v":0.544,"d":"54.4%"}]
["Income from Operations",null,{"v":118,"d":"$118"},null,{"v":114,"d":"$114"}]
["Operating margin, %",null,{"v":0.176,"d":"17.6%"},null,{"v":0.196,"d":"19.6%"}]
[]
[]
["Agilent CrossLab Segment"]
[null,null,{"$f":"C11","v":"Q3'25"},null,{"$f":"E11","v":"Q3'24"}]
["Revenue",null,{"v":744,"d":"$744"},null,{"v":691,"d":"$691"}]
["Gross Margin, %",null,{"v":0.551,"d":"55.1%"},null,{"v":0.577,"d":"57.7%"}]
["Income from Operations",null,{"v":248,"d":"$248"},null,{"v":248,"d":"$248"}]
["Operating margin, %",null,{"v":0.333,"d":"33.3%"},null,{"v":0.359,"d":"35.9%"}]
[]
[]
["Applied Markets Segment"]
[null,null,{"$f":"C11","v":"Q3'25"},null,{"$f":"E11","v":"Q3'24"}]
["Revenue",null,{"v":324,"d":"$324"},null,{"v":302,"d":"$302"}]
["Gross Margin, %",null,{"v":0.536,"d":"53.6%"},null,{"v":0.552,"d":"55.2%"}]
["Income from Operations",null,{"v":71,"d":"$71"},null,{"v":70,"d":"$70"}]
["Operating margin, %",null,{"v":0.218,"d":"21.8%"},null,{"v":0.232,"d":"23.2%"}]
[]
[]
["Year-over-Year"]
[]
["Life Sciences and Diagnostics Markets Group (LDG)"]
[null,null,"FY25",null,"FY24"]
["Revenue"]
["Gross Margin, %"]
["Income from Operations"]
["Operating margin, %"]
[]
[]
["Agilent CrossLab Group (ACG)"]
[null,null,{"$f":"C37","v":"FY25"},null,{"$f":"E37","v":"FY24"}]
["Revenue"]
["Gross Margin, %"]
["Income from Operations"]
["Operating margin, %"]
[]
[]
["Applied Markets Group (AMG)"]
[null,null,{"$f":"C37","v":"FY25"},null,{"$f":"E37","v":"FY24"}]
["Revenue"]
["Gross Margin, %"]
["Income from Operations"]
["Operating margin, %"]
[]
[]
[]
["Income from operations reflect the results of our reportable segments under Agilent's management reporting system which are not necessarily in conformity with GAAP financial measures. Income from operations of our reporting segments exclude, among other things, charges related to restructuring and other related costs, amortization of intangibles, transformational initiatives and acquisition and integration costs."]
[]
["Readers are reminded that non-GAAP numbers are merely a supplement to, and not a replacement for, GAAP financial measures.  They should be read in conjunction with the GAAP financial measures.  It should be noted as well that our non-GAAP information may be different from the non-GAAP information provided by other companies."]
[]
["The preliminary segment information is estimated based on our current information. "]
[]
[]
["Page 5"]

{"sheet":"Core Revenue by Segment (QTD)","index":5,"n_rows":45,"n_cols":9,"rows_kept":45,"merged":[[0,0,0,8],[1,0,1,8],[2,0,2,8],[3,0,3,8],[4,0,4,8],[5,0,5,8],[7,1,7,8],[9,1,9,3],[21,1,21,3],[21,5,21,6],[22,6,23,6],[22,8,23,8],[32,0,32,8],[34,0,34,8],[36,0,36,8],[38,0,38,8],[41,0,41,8],[44,0,44,8]]}
["AGILENT TECHNOLOGIES, INC."]
["RECONCILIATIONS OF REVENUE BY SEGMENT"]
["EXCLUDING ACQUISITIONS, DIVESTITURES AND THE IMPACT OF CURRENCY ADJUSTMENTS (CORE)"]
["(In millions)"]
["(Unaudited)"]
["PRELIMINARY"]
[]
[null,"Year-over-Year"]
[]
[null,"GAAP"]
[{"$nulls":3},"Year-over-Year"]
["GAAP Revenue by Segment","Q3'25","Q3'24","% Change"]
[]
["Life Sciences and Diagnostics Markets Segment",{"v":670,"d":"$670"},{"v":585,"d":"$585"},{"v":0.14,"d":"14%"}]
["Agilent CrossLab Segment",744,691,{"v":0.08,"d":"8%"}]
["Applied Markets Segment",324,302,{"v":0.07,"d":"7%"}]
["Agilent",{"$f":"SUM(B14:B16)","v":{"v":1738,"d":"$1,738"}},{"$f":"SUM(C14:C16)","v":{"v":1578,"d":"$1,578"}},{"v":0.1,"d":"10%"}]
[]
[]
[]
[]
[null,"Non-GAAP \n(excluding Acquisitions & Divestitures)",{"$nulls":3},"Year-over-Year\nat Constant Currency (a)"]
[{"$nulls":3},"Year-over-Year",null,"Year-over-Year","Percentage Point Impact from Currency",null,"Current Quarter Currency Impact (b)"]
["Non GAAP Revenue by Segment",{"$f":"B12","v":"Q3'25"},{"$f":"C12","v":"Q3'24"},"% Change",null,"% Change"]
[]
["Life Sciences and Diagnostics Markets Segment",{"v":641,"d":"$641"},{"v":585,"d":"$585"},{"v":0.09,"d":"9%"},null,{"v":0.07,"d":"7%"},"2 ppts",null,{"v":13,"d":"$13"}]
["Agilent CrossLab Segment",744,691,{"v":0.08,"d":"8%"},null,{"v":0.05,"d":"5%"},"3 ppts",null,16]
["Applied Markets Segment",324,302,{"v":0.07,"d":"7%"},null,{"v":0.05,"d":"5%"},"2 ppts",null,6]
["Agilent (Core)",{"$f":"SUM(B26:B28)","v":{"v":1709,"d":"$1,709"}},{"$f":"SUM(C26:C28)","v":{"v":1578,"d":"$1,578"}},{"v":0.08,"d":"8%"},null,{"v":0.06,"d":"6%"},"2 ppts",null,{"$f":"SUM(I26:I28)","v":{"v":35,"d":"$35"}}]
[]
[]
[]
["We compare the year-over-year change in revenue excluding the effect of recent acquisitions and divestitures and foreign currency rate fluctuations to assess the performance of our underlying business.  "]
[]
["(a) The constant currency year-over-year growth percentage is calculated by recalculating all periods in the comparison period at the foreign currency exchange rates used for accounting during the last month of the current quarter and then using those revised values to calculate the year-over-year percentage change."]
[]
["(b) The dollar impact from the current quarter currency impact is equal to the total year-over-year dollar change less the constant currency year-over-year change."]
[]
["The preliminary reconciliation of GAAP revenue adjusted for recent acquisitions and divestitures and impact of currency is estimated based on our current information."]
[]
[]
[]
[]
[]
["Page 6"]

{"sheet":"Core Revenue by Segment (YTD)","index":6,"n_rows":45,"n_cols":9,"rows_kept":45,"hidden":true,"merged":[[0,0,0,8],[1,0,1,8],[2,0,2,8],[3,0,3,8],[4,0,4,8],[5,0,5,8],[7,1,7,8],[9,1,9,3],[21,1,21,3],[21,5,21,6],[22,6,23,6],[22,8,23,8],[32,0,32,8],[34,0,34,8],[36,0,36,8],[38,0,38,8],[41,0,41,8],[44,0,44,8]]}
["AGILENT TECHNOLOGIES, INC."]
["RECONCILIATIONS OF REVENUE BY SEGMENT"]
["EXCLUDING ACQUISITIONS, DIVESTITURES AND THE IMPACT OF CURRENCY ADJUSTMENTS (CORE)"]
["(in millions)"]
["(Unaudited)"]
["PRELIMINARY"]
[]
[null,"Year-over-Year"]
[]
[null,"GAAP"]
[{"$nulls":3},"Year-over-Year"]
["GAAP Revenue by Segment","FY25","FY24","% Change"]
[]
["Life Sciences and Diagnostics Markets Group"]
["Agilent CrossLab Group"]
["Applied Markets Group"]
["Agilent",{"$f":"SUM(B14:B16)","v":0},{"$f":"SUM(C14:C16)","v":0}]
[]
[]
[]
[]
[null,"Non-GAAP \n(excluding Acquisitions & Divestitures)",{"$nulls":3},"Year-over-Year\nat Constant Currency (a)"]
[{"$nulls":3},"Year-over-Year",null,"Year-over-Year","Percentage Point Impact from Currency",null,"Current Quarter Currency Impact (b)"]
["Non GAAP Revenue by Segment",{"$f":"B12","v":"FY25"},{"$f":"C12","v":"FY24"},"% Change",null,"% Change"]
[]
["Life Sciences and Diagnostics Markets Group"]
["Agilent CrossLab Group"]
["Applied Markets Group"]
["Agilent (Core)",{"$f":"SUM(B26:B28)","v":0},{"$f":"SUM(C26:C28)","v":0},{"$nulls":5},{"$f":"SUM(I26:I28)","v":0}]
[]
[]
[]
["We compare the year-over-year change in revenue excluding the effect of recent acquisitions and divestitures and foreign currency rate fluctuations to assess the performance of our underlying business.  "]
[]
["(a) The constant currency year-over-year growth percentage is calculated by recalculating all periods in the comparison period at the foreign currency exchange rates used for accounting during the last month of the current quarter and then using those revised values to calculate the year-over-year percentage change."]
[]
["(b) The dollar impact from the current year currency impact is equal to the total year-over-year dollar change less the constant currency year-over-year change."]
[]
["The preliminary reconciliation of GAAP revenue adjusted for recent acquisitions and divestitures and impact of currency is estimated based on our current information."]
[]
[]
[]
[]
[]
["Page 7"]